bitfinex-derivatives/quotes_SOLF0:USTF0_20251006
["timestamp","ask_amount","ask_price","bid_price","bid_amount"]
[1759711423029,26.6275,229.09,228.98,11.8891]
[1759711423232,0.75998297,229.13,228.99,61.119]
[1759711423430,1.98873448,229.2,229.09,61.0924]
[1759711423636,1.98873448,229.2,229.1,7.96]
[1759711424136,34.63964288,229.24,229.11,61.087]
[1759711425437,33.88,229.24,229.15,3.9263]
[1759711426639,33.88,229.24,229.06,63.08963448]
[1759711426640,1.98873448,229.23,229.08,7.96]
[1759711427229,1.98873448,229.23,229.1,7.96]
[1759711427440,48.1,229.23,229.1,7.96]
[1759711427838,48.1,229.23,229.12,3.9268]
[1759711428040,48.1,229.23,229.13,7.98]
[1759711428243,48.1,229.23,229.14,3.9265]
[1759711429536,50.08873448,229.23,229.14,3.9265]
[1759711429742,50.08873448,229.23,229.11,3.9269]
[1759711430445,3.9251,229.22,229.11,3.9269]
[1759711430639,3.9251,229.22,229.09,3.9272]
[1759711430838,50.08873448,229.23,229.09,3.9272]
[1759711431639,3.9255,229.2,229.09,3.9272]
[1759711431840,1.98873448,229.19,229.08,7.98]
[1759711433243,1.98873448,229.19,229.09,3.9273]
[1759711433841,1.98873448,229.19,229.08,7.98]
[1759711434045,1.98873448,229.15,229.01,7.98]
[1759711434441,1.98873448,229.15,229.03,7.98]
[1759711434845,1.98873448,229.15,229.06,7.98]
[1759711436042,23.58,229.14,229.06,7.98]
[1759711437743,3.9269,229.12,229.02,3.9285]
[1759711437949,1.98873448,229.11,229.02,3.9285]
[1759711439544,1.98873448,229.11,228.99,11.909]
[1759711439746,1.98873448,229.03,228.94,7.98]
[1759711440251,61.64,229.04,228.94,7.98]
[1759711440546,1.98873448,229.09,228.95,61.13]
[1759711440748,40.6,229.08,228.99,7.98]
[1759711441352,40.6,229.08,229.0,3.9287]
[1759711441646,1.98873448,229.05,228.93,7.98]
[1759711441851,1.98873448,229.05,228.96,3.9295]
[1759711442353,1.98873448,229.05,228.94,3.9299]
[1759711442552,1.98873448,229.05,228.93,7.98]
[1759711443152,1.2697381,228.99,228.93,7.98]
[1759711443450,1.2697381,228.99,228.96,3.9295]
[1759711443846,22.38,229.02,228.98,11.9092]
[1759711444041,22.38,229.02,228.94,7.98]
[1759711445044,1.2697381,229.03,228.95,61.13]
[1759711445249,38.3697381,229.03,228.95,61.13]
[1759711446254,1.2697381,229.03,228.99,11.909]
[1759711448856,1.2697381,229.03,229.01,3.9287]
[1759711449356,1.2697381,229.09,229.01,7.98]
[1759711449551,1.2697381,229.12,229.03,7.98]
[1759711449750,42.02,229.11,229.03,7.98]
[1759711450559,42.02,229.11,229.06,3.9277]
[1759711451054,4.06988509,229.15,229.07,7.98]
[1759711452260,317.68,229.18,229.07,61.0982]
[1759711452559,318.9497381,229.18,229.11,7.98]
[1759711453254,318.9497381,229.18,229.14,3.9265]
[1759711455458,1.2697381,229.15,229.06,7.98]
[1759711456461,1.2697381,229.15,229.1,3.9271]
[1759711456858,1.2697381,229.15,229.06,7.98]
[1759711457554,1.2697381,229.15,229.09,3.9273]
[1759711457963,1.2697381,229.15,229.07,7.67]
[1759711458165,1.2697381,229.15,229.11,3.927]
[1759711458461,1.2697381,229.15,229.11,11.597]
[1759711459564,108.74,229.16,229.14,7.67]
[1759711459764,108.74,229.16,229.07,7.67]
[1759711461066,108.74,229.16,229.09,3.9273]
[1759711461067,1.2697381,229.15,229.09,3.9273]
[1759711461261,1.2697381,229.15,229.07,7.67]
[1759711461566,1.2697381,229.14,229.08,3.9275]
[1759711461866,1.2697381,229.14,229.07,7.67]
[1759711462464,1.2697381,229.14,229.1,3.9272]
[1759711464962,1.2697381,229.14,229.07,11.5977]
[1759711465562,1.2697381,229.14,229.08,3.9274]
[1759711465764,108.74,229.16,229.08,3.9274]
[1759711465968,1.2697381,229.15,229.07,7.67]
[1759711466664,108.72,229.14,229.07,7.67]
[1759711466865,108.72,229.14,229.11,11.5969]
[1759711467177,108.72,229.14,229.12,7.67]
[1759711468069,108.72,229.14,229.13,3.9267]
[1759711468470,108.7,229.14,229.13,3.9267]
[1759711469465,108.7,229.14,229.1,11.5971]
[1759711469770,1.2697381,229.15,229.1,11.5971]
[1759711469971,108.7,229.13,229.1,11.5971]
[1759711470169,108.7,229.13,229.12,3.9268]
[1759711470366,108.7,229.13,229.12,11.5968]
[1759711470671,108.7,229.13,229.12,3.9268]
[1759711475768,108.7,229.13,229.12,11.6568]
[1759711476873,317.68,229.18,229.14,3.9265]
[1759711477076,108.68,229.17,229.14,3.9265]
[1759711483687,108.68,229.17,229.07,7.73]
[1759711483984,1.2697381,229.15,229.07,7.73]
[1759711484386,1.2697381,229.15,229.11,3.9269]
[1759711486782,1.2697381,229.15,229.12,3.9267]
[1759711486983,108.68,229.17,229.11,7.73]
[1759711487488,1.2697381,229.18,229.11,7.73]
[1759711487689,38.64,229.17,229.11,7.73]
[1759711487890,38.64,229.17,229.14,11.6963]
[1759711488087,108.62,229.16,229.15,7.77]
[1759711488282,108.62,229.17,229.16,3.926]
[1759711488485,108.62,229.17,229.16,11.696]
[1759711488687,317.66,229.26,229.14,7.77]
[1759711488888,1.2697381,229.24,229.18,3.9258]
[1759711489088,1.2697381,229.24,229.14,7.77]
[1759711489482,108.62,229.23,229.14,7.77]
[1759711489690,1.2697381,229.21,229.14,7.77]
[1759711489886,1.2697381,229.21,229.1,7.77]
[1759711490082,108.62,229.22,229.1,7.77]
[1759711490083,1.2697381,229.18,229.1,7.77]
[1759711490290,1.2697381,229.18,229.12,3.9268]
[1759711490491,1.2697381,229.18,229.1,7.77]
[1759711491694,1.2697381,229.15,229.05,7.77]
[1759711491887,108.6,229.14,229.05,7.77]
[1759711492193,108.6,229.14,229.09,11.6972]
[1759711493093,108.6,229.14,229.06,3.9277]
[1759711493294,108.6,229.14,229.05,7.77]
[1759711494992,108.6,229.14,229.12,3.9268]
[1759711495394,108.6,229.14,229.1,5.1969381]
[1759711495589,108.6,229.14,229.1,1.2697381]
[1759711495890,108.6,229.16,229.13,1.2697381]
[1759711496090,108.6,229.16,229.13,5.1963381]
[1759711496284,6.08066121,229.24,229.13,1.2697381]
[1759711496484,108.58,229.23,229.13,1.2697381]
[1759711497694,112.505,229.23,229.15,3.9263]
[1759711498896,117.31592311,229.23,229.15,3.9263]
[1759711499192,1.2697381,229.21,229.15,3.9263]
[1759711499592,1.2697381,229.24,229.17,3.926]
[1759711499899,108.58,229.23,229.15,7.77]
[1759711500193,108.58,229.22,229.17,1.2697381]
[1759711500395,108.58,229.22,229.18,68.8379]
[1759711500693,4.81092311,229.33,229.24,7.77]
[1759711500900,8.48612276,229.37,229.28,7.77]
[1759711500901,4.81092311,229.35,229.28,7.77]
[1759711501101,108.56,229.34,229.28,11.694]
[1759711501498,108.56,229.34,229.28,7.77]
[1759711501800,108.56,229.34,229.3,3.9236]
[1759711501997,108.56,229.35,229.3,3.9236]
[1759711502195,108.56,229.35,229.32,3.9233]
[1759711502395,108.56,229.35,229.33,7.77]
[1759711503002,108.56,229.35,229.3,68.8065]
[1759711503206,108.56,229.35,229.31,7.77]
[1759711503501,108.56,229.35,229.34,7.77]
[1759711504698,108.56,229.35,229.29,7.77]
[1759711504894,108.56,229.35,229.2,61.0618]
[1759711504895,108.56,229.35,229.25,9.0397381]
[1759711505100,108.56,229.35,229.25,7.77]
[1759711505503,108.56,229.35,229.18,68.8383]
[1759711505504,110.53794318,229.35,229.18,68.8383]
[1759711505698,111.29714689,229.35,229.21,11.6952]
[1759711505898,111.29714689,229.35,229.21,7.77]
[1759711506103,109.31920371,229.35,229.21,7.77]
[1759711506300,109.31920371,229.35,229.23,7.77]
[1759711506702,109.31920371,229.35,229.25,3.9246]
[1759711507309,109.31920371,229.35,229.23,7.77]
[1759711507801,1.97794318,229.34,229.21,3.9252]
[1759711508006,108.5,229.33,229.18,7.77]
[1759711508205,110.47794318,229.33,229.18,7.77]
[1759711508409,114.40134318,229.33,229.18,7.77]
[1759711509004,114.40134318,229.33,229.21,3.9252]
[1759711509399,3.9237,229.31,229.18,7.77]
[1759711509602,110.47794318,229.33,229.18,7.77]
[1759711509603,1.97794318,229.29,229.18,7.77]
[1759711509998,5.90204318,229.29,229.18,7.77]
[1759711510507,1.97794318,229.29,229.18,7.77]
[1759711511006,3.9245,229.26,229.14,3.9264]
[1759711511206,86.84,229.25,229.14,3.9264]
[1759711511407,86.84,229.25,229.13,7.77]
[1759711511609,86.84,229.25,229.15,7.77]
[1759711512202,86.84,229.25,229.16,3.9261]
[1759711513409,86.84,229.25,229.13,3.9266]
[1759711513803,88.81794318,229.25,229.13,3.9266]
[1759711514001,86.84,229.25,229.15,3.9263]
[1759711514202,3.9242,229.28,229.02,378.6291]
[1759711514203,61.049,229.26,229.02,378.6291]
[1759711514500,3.9252,229.22,229.11,3.9269]
[1759711514701,1.97794318,229.23,229.11,3.9269]
[1759711515107,84.3,229.22,229.13,3.9266]
[1759711516211,1.97794318,229.19,229.09,3.9273]
[1759711516413,1.97794318,229.19,229.04,7.77]
[1759711516715,1.97794318,229.19,229.05,61.1035]
[1759711517115,61.0409,229.29,229.09,68.8612]
[1759711517309,1.97794318,229.27,229.13,61.0821]
[1759711518407,1.97794318,229.27,229.16,3.9261]
[1759711519214,3.9245,229.26,229.12,11.6968]
[1759711519416,108.48,229.26,229.12,7.77]
[1759711519611,1.97794318,229.27,229.12,7.77]
[1759711519816,108.48,229.26,229.12,7.77]
[1759711520009,5.90224318,229.27,229.12,7.77]
[1759711520207,1.97794318,229.27,229.16,3.9261]
[1759711520811,112.4045,229.26,229.16,3.9261]
[1759711521114,108.48,229.25,229.16,3.9261]
[1759711522014,1.97794318,229.23,229.09,7.57]
[1759711523207,3.9254,229.21,229.09,7.57]
[1759711523408,1.97794318,229.19,229.09,7.57]
[1759711523614,1.97794318,229.21,229.09,7.57]
[1759711523810,1.97794318,229.21,229.1,3.9272]
[1759711524321,1.97794318,229.17,229.02,7.57]
[1759711524523,1.97794318,229.13,229.02,7.57]
[1759711524720,1.97794318,229.19,229.08,7.57]
[1759711525021,34.14,229.19,229.12,7.57]
[1759711525416,77.18,229.22,229.13,61.082]
[1759711525714,77.18,229.22,229.18,7.57]
[1759711526415,77.18,229.22,229.16,3.9261]
[1759711528220,77.18,229.22,229.18,3.9258]
[1759711528522,108.46,229.24,229.18,11.4958]
[1759711529121,108.46,229.24,229.18,3.9258]
[1759711529313,108.46,229.24,229.15,3.9262]
[1759711529517,108.46,229.24,229.14,7.57]
[1759711530829,108.46,229.26,229.16,68.6442]
[1759711531326,108.46,229.26,229.18,3.9258]
[1759711531921,108.46,229.26,229.2,3.9254]
[1759711533728,1.97794318,229.31,229.22,3.9251]
[1759711533928,317.5,229.32,229.22,7.7]
[1759711534123,425.94,229.32,229.22,7.7]
[1759711534525,425.94,229.32,229.26,3.9244]
[1759711534922,425.94,229.32,229.22,7.7]
[1759711535220,427.91794318,229.32,229.17,7.7]
[1759711535417,1.97794318,229.28,229.17,7.7]
[1759711535617,5.90214318,229.28,229.19,3.9256]
[1759711535829,1.97794318,229.28,229.19,3.9256]
[1759711536028,1.97794318,229.28,229.17,7.7]
[1759711536523,5.90164318,229.31,229.21,3.9252]
[1759711536728,425.94,229.32,229.2,7.7]
[1759711536729,317.5,229.32,229.2,7.7]
[1759711536925,317.5,229.32,229.22,68.758]
[1759711537224,108.44,229.31,229.22,7.7]
[1759711537720,108.44,229.31,229.22,11.6251]
[1759711537925,108.44,229.31,229.22,7.7]
[1759711538928,108.44,229.31,229.23,3.925]
[1759711540521,108.44,229.31,229.15,61.0758]
[1759711540522,112.3636,229.31,229.2,3.9254]
[1759711540726,1.97794318,229.3,229.2,3.9254]
[1759711541127,108.42,229.29,229.2,7.7]
[1759711542726,108.42,229.29,229.21,3.9253]
[1759711544230,108.42,229.29,229.23,3.9249]
[1759711547435,108.42,229.29,229.2,7.7]
[1759711547831,108.42,229.29,229.16,8.04]
[1759711548036,108.42,229.29,229.18,8.04]
[1759711549936,108.42,229.29,229.19,61.0661]
[1759711550737,108.42,229.29,229.23,3.9249]
[1759711551037,108.42,229.29,229.21,8.04]
[1759711551235,108.42,229.29,229.25,3.9244]
[1759711556141,108.42,229.29,229.23,3.9249]
[1759711557543,108.42,229.29,229.21,3.9253]
[1759711557737,108.42,229.29,229.18,69.1079]
[1759711558645,108.42,229.29,229.23,3.925]
[1759711559338,112.344,229.29,229.2,3.9253]
[1759711559539,112.344,229.29,229.18,8.04]
[1759711559941,112.344,229.29,229.22,3.925]
[1759711560346,108.42,229.29,229.18,69.108]
[1759711560541,108.42,229.29,229.24,3.9247]
[1759711560742,317.5,229.32,229.22,69.0978]
[1759711560948,108.36,229.31,229.22,69.0978]
[1759711561342,108.36,229.31,229.24,3.9247]
[1759711561541,108.36,229.31,229.22,8.04]
[1759711561745,108.36,229.31,229.17,8.04]
[1759711562048,108.36,229.31,229.19,69.1061]
[1759711562251,108.36,229.31,229.2,69.1036]
[1759711562640,108.36,229.31,229.2,8.04]
[1759711563542,112.2836,229.31,229.23,3.9249]
[1759711563738,319.47794318,229.32,229.21,61.0599]
[1759711563939,319.47794318,229.32,229.22,8.04]
[1759711563940,108.36,229.31,229.22,8.04]
[1759711564144,108.36,229.3,229.22,8.04]
[1759711565652,1.97794318,229.28,229.15,4.88046943]
[1759711565951,1.97794318,229.28,229.14,8.04]
[1759711566148,3.9248,229.24,229.16,3.926]
[1759711566352,108.34,229.23,229.16,3.926]
[1759711566655,108.34,229.23,229.14,8.04]
[1759711567045,1.26743365,229.21,229.14,8.04]
[1759711567249,1.26743365,229.18,229.09,8.04]
[1759711567554,108.34,229.17,229.11,8.04]
[1759711567748,102.56,229.18,229.11,8.04]
[1759711568150,102.56,229.18,229.12,61.0844]
[1759711568354,102.56,229.18,229.13,69.1222]
[1759711568554,1.26743365,229.21,229.2,3.9255]
[1759711568752,1.26743365,229.26,229.17,61.0707]
[1759711568954,317.5,229.32,229.21,8.04]
[1759711569152,67.14,229.31,229.24,3.9248]
[1759711570152,67.14,229.31,229.21,69.0997]
[1759711570554,67.14,229.31,229.26,3.9243]
[1759711571252,318.76743365,229.32,229.27,3.9241]
[1759711571460,108.34,229.31,229.27,8.04]
[1759711572151,317.5,229.32,229.26,61.0469]
[1759711572352,317.5,229.32,229.25,8.04]
[1759711572555,425.84,229.32,229.25,8.04]
[1759711572760,425.84,229.32,229.27,3.9243]
[1759711572949,425.84,229.32,229.27,3.95367049]
[1759711573256,425.84,229.32,229.27,0.02937049]
[1759711577556,1.26743365,229.31,229.27,0.02937049]
[1759711578357,317.5,229.32,229.27,7.89937049]
[1759711578554,108.32,229.31,229.28,7.87]
[1759711578758,108.32,229.3,229.28,7.87]
[1759711579663,108.32,229.3,229.29,3.9239]
[1759711579961,108.32,229.3,229.27,0.02937049]
[1759711580161,108.32,229.3,229.27,7.89937049]
[1759711580462,108.32,229.3,229.28,3.9241]
[1759711582559,108.32,229.3,229.27,0.02937049]
[1759711583359,1.26743365,229.28,229.27,0.02937049]
[1759711583852,1.26743365,229.28,229.15,62.34233365]
[1759711583853,1.70743365,229.28,229.15,7.87]
[1759711584159,1.26743365,229.21,229.12,61.0849]
[1759711584363,108.28,229.2,229.12,61.0849]
[1759711584655,108.28,229.2,229.12,3.9268]
[1759711585362,108.28,229.2,229.14,3.9265]
[1759711585962,1.26743365,229.18,229.09,7.87]
[1759711586158,1.26743365,229.15,229.06,4.88046943]
[1759711586358,1.26743365,229.15,229.1,3.9271]
[1759711587157,1.26743365,229.18,229.1,3.9271]
[1759711587653,65.85572311,229.28,229.12,3.9268]
[1759711587860,1.26743365,229.19,229.1,68.9591]
[1759711588164,108.3,229.18,229.1,7.87]
[1759711588363,108.3,229.18,229.06,1.26743365]
[1759711588364,1.26743365,229.16,229.08,3.9274]
[1759711588864,1.26743365,229.16,229.1,3.9271]
[1759711589963,1.26743365,229.16,229.06,7.87]
[1759711590263,108.3,229.18,229.08,61.0953]
[1759711590464,1.26743365,229.19,229.13,3.9266]
[1759711590664,108.3,229.18,229.13,3.9266]
[1759711592260,108.32,229.18,229.13,11.7966]
[1759711592962,1.26743365,229.19,229.13,11.7966]
[1759711593160,109.56743365,229.19,229.13,11.7966]
[1759711593559,109.56743365,229.19,229.13,3.9266]
[1759711594158,1.26743365,229.16,229.1,3.9271]
[1759711594961,108.3,229.19,229.1,3.9271]
[1759711595164,1.26743365,229.17,229.1,3.9271]
[1759711595559,1.26743365,229.17,229.05,7.71]
[1759711596866,1.26743365,229.17,229.08,68.8048]
[1759711597058,31.28,229.16,229.1,61.09]
[1759711597263,31.28,229.16,229.13,3.9267]
[1759711598069,1.26743365,229.2,229.1,3.9271]
[1759711598271,62.92,229.19,229.1,3.9271]
[1759711598469,1.26743365,229.2,229.1,61.0903]
[1759711598762,90.38,229.19,229.1,61.0903]
[1759711598969,90.38,229.19,229.14,3.9265]
[1759711602372,90.38,229.19,229.12,3.9268]
[1759711602870,1.26743365,229.17,229.06,7.71]
[1759711603263,1.26743365,229.17,229.11,3.927]
[1759711604061,52.14,229.16,229.07,1.26743365]
[1759711604263,1.26743365,229.21,229.12,61.0839]
[1759711604466,1.26743365,229.23,229.14,68.7896]
[1759711604664,33.2,229.22,229.16,3.926]
[1759711604969,33.2,229.22,229.1,62.35693365]
[1759711605271,33.2,229.22,229.12,68.7949]
[1759711605468,69.9,229.22,229.12,68.7949]
[1759711606676,69.9,229.22,229.16,3.9261]
[1759711607271,1.26743365,229.23,229.16,3.9261]
[1759711607473,109.56743365,229.23,229.18,3.9258]
[1759711607970,108.3,229.23,229.2,3.9255]
[1759711608576,108.3,229.23,229.17,3.9259]
[1759711608877,109.56743365,229.23,229.1,8.76743365]
[1759711609078,1.26743365,229.22,229.16,3.926]
[1759711609675,1.26743365,229.22,229.18,3.9258]
[1759711609977,108.3,229.23,229.15,68.5762]
[1759711611576,108.3,229.23,229.19,3.9256]
[1759711613678,1.26743365,229.25,229.21,3.9253]
[1759711613879,321.6605684,229.29,229.18,7.5]
[1759711613880,108.28,229.24,229.18,7.5]
[1759711614070,108.28,229.24,229.2,7.5]
[1759711614484,108.28,229.24,229.19,61.0658]
[1759711614682,108.28,229.27,229.24,3.9247]
[1759711614983,108.28,229.27,229.2,7.5]
[1759711616476,108.28,229.27,229.2,11.4254]
[1759711616876,108.28,229.27,229.2,7.5]
[1759711617577,1.26743365,229.25,229.15,7.5]
[1759711617978,1.26743365,229.25,229.17,3.9258]
[1759711619884,1.26743365,229.25,229.15,7.5]
[1759711620186,1.26743365,229.22,229.09,68.5909]
[1759711620384,1.26743365,229.19,229.13,3.9265]
[1759711620586,1.26743365,229.19,229.11,7.5]
[1759711620988,108.26,229.21,229.11,7.5]
[1759711621286,108.26,229.21,229.15,3.9262]
[1759711621782,109.52743365,229.21,229.16,3.926]
[1759711622287,109.52743365,229.21,229.14,3.9265]
[1759711622481,109.52743365,229.21,229.11,7.5]
[1759711623286,109.52743365,229.21,229.13,61.0813]
[1759711623479,4.81092311,229.34,229.16,7.5]
[1759711623678,108.26,229.28,229.19,7.5]
[1759711623884,108.26,229.28,229.2,3.9253]
[1759711624186,108.26,229.28,229.19,7.5]
[1759711625090,108.26,229.28,229.19,11.4255]
[1759711625289,108.26,229.28,229.19,7.5]
[1759711626692,108.26,229.28,229.21,3.9253]
[1759711626882,108.26,229.28,229.19,7.5]
[1759711628288,317.48,229.29,229.2,61.0631]
[1759711628487,425.72,229.29,229.22,7.5]
[1759711628893,425.72,229.29,229.25,3.9245]
[1759711629291,425.72,229.29,229.22,7.5]
[1759711630294,425.72,229.29,229.27,3.9243]
[1759711630491,317.48,229.29,229.27,3.9243]
[1759711630696,6.78949933,229.39,229.25,61.0491]
[1759711630892,6.78949933,229.39,229.27,61.045]
[1759711630893,108.22,229.38,229.27,61.045]
[1759711631393,108.22,229.38,229.26,61.0472]
[1759711631885,108.22,229.38,229.27,7.5]
[1759711632091,108.22,229.38,229.31,3.9234]
[1759711632493,317.54,229.43,229.3,68.5366]
[1759711632494,319.51857622,229.43,229.3,68.5366]
[1759711632688,108.22,229.42,229.32,3.9233]
[1759711632889,108.22,229.42,229.3,7.5]
[1759711633090,108.97899673,229.42,229.3,7.5]
[1759711634790,1.97857622,229.39,229.24,7.5]
[1759711635394,3.9227,229.37,229.27,3.9243]
[1759711635699,82.92,229.36,229.27,3.9243]
[1759711636302,82.92,229.36,229.29,3.9239]
[1759711637291,82.92,229.36,229.26,3.9243]
[1759711637605,3.9233,229.33,229.18,7.45]
[1759711637904,1.97857622,229.31,229.18,7.45]
[1759711638201,40.66,229.3,229.18,7.45]
[1759711638791,1.97857622,229.27,229.18,7.45]
[1759711638992,1.97857622,229.27,229.14,7.45]
[1759711639901,44.88,229.26,229.18,7.45]
[1759711640893,44.88,229.26,229.21,11.3753]
[1759711642209,3.923,229.35,229.22,68.5075]
[1759711642400,61.96,229.34,229.25,7.45]
[1759711642602,61.96,229.34,229.29,3.9239]
[1759711644005,61.96,229.34,229.26,3.9244]
[1759711644212,61.96,229.34,229.25,7.45]
[1759711645707,61.96,229.34,229.29,3.9239]
[1759711646100,61.96,229.34,229.22,3.9251]
[1759711646302,63.93857622,229.34,229.22,3.9251]
[1759711646509,1.97857622,229.3,229.19,7.45]
[1759711646996,3.9241,229.28,229.2,3.9255]
[1759711647196,1.97857622,229.3,229.2,3.9255]
[1759711647811,5.90197622,229.33,229.21,7.45]
[1759711648404,1.97857622,229.29,229.21,11.3752]
[1759711648800,1.97857622,229.29,229.15,7.45]
[1759711649108,122.9881,229.34,229.15,7.45]
[1759711649511,61.0296,229.33,229.19,3.9256]
[1759711650111,61.0296,229.33,229.15,7.45]
[1759711650112,61.0296,229.33,229.21,3.9253]
[1759711651206,3.9238,229.31,229.21,3.9253]
[1759711651810,61.96,229.34,229.16,61.0742]
[1759711652003,61.0296,229.33,229.15,7.45]
[1759711652207,77.78,229.32,229.15,7.45]
[1759711652407,3.924,229.29,229.18,3.9258]
[1759711652812,61.0401,229.3,229.15,7.45]
[1759711653112,3.9248,229.25,229.15,11.3764]
[1759711653310,108.18,229.24,229.09,61.0933]
[1759711653506,108.18,229.24,229.1,7.33]
[1759711653707,108.18,229.24,229.11,3.927]
[1759711653910,108.18,229.24,229.1,7.33]
[1759711654813,108.18,229.23,229.1,7.33]
[1759711655914,108.18,229.23,229.1,11.2572]
[1759711656112,108.18,229.23,229.1,7.33]
[1759711657825,112.105,229.23,229.12,3.9268]
[1759711659515,108.18,229.23,229.12,3.9268]
[1759711659911,108.18,229.23,229.1,7.33]
[1759711660115,3.9253,229.21,229.1,7.33]
[1759711660311,108.18,229.23,229.1,7.33]
[1759711660914,108.18,229.23,229.05,7.33]
[1759711661517,108.18,229.23,229.1,3.9272]
[1759711662414,3.9256,229.2,229.1,3.9272]
[1759711664614,3.9258,229.18,229.09,7.33]
[1759711665323,108.18,229.17,229.09,11.2573]
[1759711665615,61.0384,229.3,229.11,68.4176]
[1759711665816,108.18,229.26,229.11,68.4176]
[1759711666110,108.18,229.26,229.11,7.33]
[1759711666314,61.0505,229.25,229.11,7.33]
[1759711666913,61.0505,229.25,229.11,11.257]
[1759711667714,12.92732007,229.26,229.11,7.33]
[1759711667912,108.18,229.25,229.11,7.33]
[1759711668513,61.0384,229.3,229.13,7.45]
[1759711668514,108.18,229.24,229.13,7.45]
[1759711668920,3.925,229.23,229.13,7.45]
[1759711670617,3.925,229.23,229.13,11.3765]
[1759711673522,3.9254,229.21,229.13,11.3765]
[1759711673717,108.18,229.24,229.11,1.98002508]
[1759711673920,108.18,229.24,229.09,7.45]
[1759711674118,3.9255,229.21,229.09,7.45]
[1759711674319,108.18,229.24,229.13,7.45]
[1759711674524,108.18,229.23,229.13,7.45]
[1759711675623,108.18,229.23,229.16,3.9262]
[1759711676026,108.18,229.23,229.16,11.3762]
[1759711677729,108.18,229.23,229.18,11.3758]
[1759711678128,108.18,229.23,229.12,7.45]
[1759711678524,108.18,229.23,229.15,7.45]
[1759711678828,108.16,229.22,229.15,7.45]
[1759711679229,108.16,229.22,229.14,3.9266]
[1759711679423,108.16,229.22,229.08,7.45]
[1759711679424,1.98002508,229.21,229.08,7.45]
[1759711679630,3.9262,229.16,229.08,7.45]
[1759711679830,108.16,229.15,229.08,7.45]
[1759711680031,108.16,229.14,229.08,7.45]
[1759711680531,108.16,229.14,229.1,7.45]
[1759711680727,108.16,229.13,229.07,61.0993]
[1759711681230,108.16,229.13,229.02,7.45]
[1759711681832,108.16,229.13,229.05,7.45]
[1759711683027,108.16,229.13,229.07,3.9276]
[1759711683332,108.16,229.13,229.05,7.45]
[1759711684636,108.16,229.13,229.08,3.9274]
[1759711684934,108.16,229.13,229.06,7.45]
[1759711685331,108.16,229.13,229.08,3.9275]
[1759711685532,108.16,229.13,229.08,11.3775]
[1759711686239,108.16,229.13,229.05,3.928]
[1759711686437,108.16,229.13,229.04,7.45]
[1759711686834,108.16,229.13,229.07,3.9276]
[1759711687033,1.98002508,229.19,229.07,61.0974]
[1759711687233,108.18,229.18,229.07,61.0974]
[1759711688341,108.18,229.18,229.09,3.9273]
[1759711689141,1.26809679,229.16,229.06,7.45]
[1759711689737,1.26809679,229.16,229.08,3.9275]
[1759711691938,3.9264,229.15,229.05,3.928]